[Event "Goteborg Open 2024"]
[Site "Goteborgs Schackcentrum, Vegatan 20, Gothenburg, Sweden"]
[Date "2024.08.04"]
[Round "8.1"]
[White "Rasti, Arvin"]
[Black "Borin, Jesper"]
[Result "1-0"]
[TimeControl "15 minutes + 5 seconds per move from move one (Round 1 - 4) / 90 minutes + 30 seconds per move from move one (Round 5 - 8)"]
[WhiteTitle "FM"]
[WhiteFideId "1741160"]
[BlackFideId "1771337"]
[WhiteElo "2195"]
[BlackElo "1905"]

1. Nf3 {[%clk 01:30:57]} {[%emt 00:00:02]} Nf6 {[%clk 01:30:53]} {[%emt
00:00:08]} 2. g3 {[%clk 01:31:12]} {[%emt 00:00:14]} g6 {[%clk 01:31:20]}
{[%emt 00:00:03]} 3. Bg2 {[%clk 01:31:33]} {[%emt 00:00:10]} Bg7 {[%clk
01:31:48]} {[%emt 00:00:02]} 4. O-O {[%clk 01:31:53]} {[%emt 00:00:10]} O-O
{[%clk 01:32:13]} {[%emt 00:00:03]} 5. d4 {[%clk 01:32:19]} {[%emt 00:00:06]}
d6 {[%clk 01:32:19]} {[%emt 00:00:24]} 6. b3 {[%clk 01:32:17]} {[%emt
00:00:31]} c5 {[%clk 01:31:45]} {[%emt 00:01:05]} 7. Bb2 {[%clk 01:32:19]}
{[%emt 00:00:28]} Nc6 {[%clk 01:24:18]} {[%emt 00:07:57]} 8. c4 {[%clk
01:26:26]} {[%emt 00:06:23]} cxd4 {[%clk 01:20:54]} {[%emt 00:03:54]} 9. Nxd4
{[%clk 01:26:44]} {[%emt 00:00:11]} Bd7 {[%clk 01:17:41]} {[%emt 00:03:43]} 10.
Nc3 {[%clk 01:23:50]} {[%emt 00:03:24]} a6 {[%clk 01:16:24]} {[%emt 00:01:48]}
11. e4 {[%clk 01:13:32]} {[%emt 00:10:47]} Nxd4 {[%clk 01:12:32]} {[%emt
00:04:23]} 12. Qxd4 {[%clk 01:13:59]} {[%emt 00:00:03]} Ng4 {[%clk 01:12:37]}
{[%emt 00:00:25]} 13. Qd2 {[%clk 01:13:31]} {[%emt 00:00:58]} Bc6 {[%clk
01:12:36]} {[%emt 00:00:31]} 14. h3 {[%clk 01:10:23]} {[%emt 00:03:37]} Ne5
{[%clk 01:07:23]} {[%emt 00:05:44]} 15. Rfc1 {[%clk 01:09:19]} {[%emt
00:01:33]} Rb8 {[%clk 00:47:49]} {[%emt 00:20:04]} 16. Nd5 {[%clk 01:01:14]}
{[%emt 00:08:36]} Bxd5 {[%clk 00:46:45]} {[%emt 00:01:34]} 17. exd5 {[%clk
01:00:56]} {[%emt 00:00:48]} b5 {[%clk 00:46:16]} {[%emt 00:00:59]} 18. cxb5
{[%clk 00:59:19]} {[%emt 00:02:06]} Rxb5 {[%clk 00:45:04]} {[%emt 00:01:43]} 19.
Bd4 {[%clk 00:55:45]} {[%emt 00:04:04]} Qa5 {[%clk 00:29:50]} {[%emt 00:15:43]}
20. Qxa5 {[%clk 00:52:06]} {[%emt 00:04:09]} Rxa5 {[%clk 00:30:18]} {[%emt
00:00:02]} 21. a4 {[%clk 00:38:01]} {[%emt 00:14:35]} Nf3+ {[%clk 00:30:01]}
{[%emt 00:00:47]} 22. Bxf3 {[%clk 00:38:17]} {[%emt 00:00:14]} Bf6 {[%emt
00:00:04]} 23. Be5 Bxe5 {[%clk 00:30:27]} 24. b4 {[%clk 00:38:37]} {[%emt
00:00:10]} Bxa1 {[%clk 00:28:47]} {[%emt 00:02:11]} 25. Rxa1 {[%clk 00:37:41]}
{[%emt 00:01:26]} Rxd5 {[%clk 00:29:04]} {[%emt 00:00:12]} 26. Bxd5 {[%clk
00:38:06]} {[%emt 00:00:06]} Rb8 {[%clk 00:29:17]} {[%emt 00:00:17]} 27. b5
{[%clk 00:38:01]} {[%emt 00:00:34]} axb5 {[%clk 00:29:41]} {[%emt 00:00:07]} 28.
a5 {[%clk 00:38:30]} e6 {[%clk 00:29:49]} {[%emt 00:00:22]} 29. Bc6 {[%clk
00:38:58]} {[%emt 00:00:02]} b4 {[%clk 00:29:49]} {[%emt 00:00:29]} 30. a6
{[%clk 00:39:23]} {[%emt 00:00:06]} b3 {[%clk 00:30:04]} {[%emt 00:00:15]} 31.
a7 {[%clk 00:39:45]} {[%emt 00:00:08]} b2 {[%clk 00:30:15]} {[%emt 00:00:19]}
32. axb8=Q+ {[%clk 00:40:06]} {[%emt 00:00:08]} 1-0

[ePGN "0.1;DGT LiveChess/2.2.6"]

[Event "Goteborg Open 2024"]
[Site "Goteborgs Schackcentrum, Vegatan 20, Gothenburg, Sweden"]
[Date "2024.08.04"]
[Round "8.2"]
[White "Degerfeldt, Sven"]
[Black "Kallen, Jonas"]
[Result "1-0"]
[TimeControl "15 minutes + 5 seconds per move from move one (Round 1 - 4) / 90 minutes + 30 seconds per move from move one (Round 5 - 8)"]
[WhiteFideId "1717430"]
[BlackFideId "1712896"]
[WhiteElo "1902"]
[BlackElo "2017"]

1. d4 {[%clk 01:30:56]} {[%emt 00:00:03]} Nf6 {[%clk 01:30:51]} {[%emt
00:00:09]} 2. Nf3 {[%clk 01:29:40]} {[%emt 00:01:47]} g6 {[%clk 01:30:59]}
{[%emt 00:00:22]} 3. e3 {[%clk 01:29:33]} {[%emt 00:00:36]} Bg7 {[%clk
01:30:25]} {[%emt 00:01:04]} 4. Be2 {[%clk 01:29:55]} {[%emt 00:00:08]} O-O
{[%clk 01:29:58]} {[%emt 00:00:58]} 5. O-O {[%clk 01:30:17]} {[%emt 00:00:08]}
b6 {[%clk 01:29:34]} {[%emt 00:00:54]} 6. b3 {[%clk 01:30:08]} {[%emt
00:00:38]} Bb7 {[%clk 01:28:55]} {[%emt 00:01:09]} 7. Bb2 {[%clk 01:30:28]}
{[%emt 00:00:10]} c5 {[%clk 01:28:31]} {[%emt 00:00:54]} 8. dxc5 {[%clk
01:30:19]} {[%emt 00:00:40]} bxc5 {[%clk 01:28:49]} {[%emt 00:00:12]} 9. c4
{[%clk 01:30:43]} {[%emt 00:00:06]} d6 {[%clk 01:27:02]} {[%emt 00:02:17]} 10.
Nc3 {[%clk 01:29:31]} {[%emt 00:01:43]} Nbd7 {[%clk 01:25:23]} {[%emt
00:02:08]} 11. Qc2 {[%clk 01:29:36]} {[%emt 00:00:25]} Qb6 {[%clk 01:21:11]}
{[%emt 00:04:41]} 12. Rad1 {[%clk 01:29:45]} {[%emt 00:00:21]} Rfd8 {[%clk
01:18:00]} {[%emt 00:03:41]} 13. Rd2 {[%clk 01:24:38]} {[%emt 00:05:37]} Qc6
{[%clk 01:13:10]} {[%emt 00:05:21]} 14. Rfd1 {[%clk 01:23:38]} {[%emt
00:01:29]} Ne4 {[%clk 01:06:26]} {[%emt 00:07:15]} 15. Nd5 {[%clk 01:21:51]}
{[%emt 00:02:16]} Qa6 {[%clk 01:00:48]} {[%emt 00:06:09]} 16. Qxe4 {[%clk
01:20:37]} {[%emt 00:01:44]} Bxb2 {[%clk 01:00:10]} {[%emt 00:01:09]} 17. Rxb2
{[%clk 01:20:37]} {[%emt 00:00:29]} e6 {[%clk 00:58:04]} {[%emt 00:02:35]} 18.
Nc7 {[%clk 01:16:53]} {[%emt 00:04:14]} Qa3 {[%clk 00:50:43]} {[%emt 00:07:52]}
19. Qc2 {[%clk 01:17:09]} {[%emt 00:00:13]} 1-0

[ePGN "0.1;DGT LiveChess/2.2.6"]

[Event "Goteborg Open 2024"]
[Site "Goteborgs Schackcentrum, Vegatan 20, Gothenburg, Sweden"]
[Date "2024.08.04"]
[Round "8.3"]
[White "Lennerstad, Allan"]
[Black "Wickstrom, Carina"]
[Result "1-0"]
[TimeControl "15 minutes + 5 seconds per move from move one (Round 1 - 4) / 90 minutes + 30 seconds per move from move one (Round 5 - 8)"]
[WhiteFideId "1723774"]
[BlackFideId "1743201"]
[WhiteElo "1950"]
[BlackElo "2013"]

1. Nf3 {[%clk 01:30:58]} {[%emt 00:00:02]} g6 {[%clk 01:30:55]} {[%emt
00:00:06]} 2. d4 {[%clk 01:31:21]} {[%emt 00:00:06]} Bg7 {[%clk 01:31:21]}
{[%emt 00:00:04]} 3. c4 {[%clk 01:31:47]} {[%emt 00:00:05]} d6 {[%clk
01:31:47]} {[%emt 00:00:04]} 4. e4 {[%clk 01:32:04]} {[%emt 00:00:12]} e5
{[%clk 01:31:34]} {[%emt 00:00:43]} 5. dxe5 {[%clk 01:28:49]} {[%emt 00:03:46]}
dxe5 {[%clk 01:31:58]} {[%emt 00:00:06]} 6. Qc2 {[%clk 01:29:10]} {[%emt
00:00:08]} Nc6 {[%clk 01:29:25]} {[%emt 00:03:04]} 7. Be3 {[%clk 01:26:22]}
{[%emt 00:03:18]} Nge7 {[%clk 01:24:38]} {[%emt 00:05:16]} 8. Nbd2 {[%clk
01:23:31]} {[%emt 00:03:22]} O-O {[%clk 01:19:25]} {[%emt 00:05:43]} 9. O-O-O
{[%clk 01:22:09]} {[%emt 00:01:51]} Nd4 {[%clk 01:09:15]} {[%emt 00:10:41]} 10.
Qc3 {[%clk 01:14:21]} {[%emt 00:08:17]} c5 {[%clk 01:08:42]} {[%emt 00:01:03]}
11. Ne1 {[%clk 01:11:41]} {[%emt 00:03:10]} Nec6 {[%clk 01:06:52]} {[%emt
00:02:20]} 12. Nd3 {[%clk 01:09:56]} {[%emt 00:02:16]} Qe7 {[%clk 01:03:17]}
{[%emt 00:04:05]} 13. a3 {[%clk 01:06:05]} {[%emt 00:04:21]} Be6 {[%clk
01:00:52]} {[%emt 00:02:54]} 14. Kb1 {[%clk 01:05:09]} {[%emt 00:01:26]} Rab8
{[%clk 00:59:26]} {[%emt 00:01:57]} 15. f4 {[%clk 00:58:10]} {[%emt 00:07:29]}
f6 {[%clk 00:49:02]} {[%emt 00:10:53]} 16. h3 {[%clk 00:47:40]} {[%emt
00:11:00]} Rfd8 {[%clk 00:38:20]} {[%emt 00:11:12]} 17. g4 {[%clk 00:44:26]}
{[%emt 00:03:45]} a6 {[%clk 00:35:18]} {[%emt 00:03:32]} 18. Rh2 {[%clk
00:40:23]} {[%emt 00:04:32]} b5 {[%clk 00:33:02]} {[%emt 00:02:47]} 19. cxb5
{[%clk 00:38:55]} {[%emt 00:01:57]} Nxb5 {[%clk 00:30:16]} {[%emt 00:03:16]} 20.
Qxc5 {[%clk 00:39:01]} {[%emt 00:00:24]} Qb7 {[%clk 00:22:32]} {[%emt
00:08:13]} 21. Rc1 {[%clk 00:28:56]} {[%emt 00:10:37]} Rxd3 {[%clk 00:20:16]}
{[%emt 00:02:45]} 22. Bxd3 {[%clk 00:27:40]} {[%emt 00:01:45]} Bf8 {[%clk
00:20:17]} {[%emt 00:00:30]} 23. Qb6 {[%clk 00:25:30]} {[%emt 00:02:40]} Qd7
{[%clk 00:12:12]} {[%emt 00:08:36]} 24. Qxc6 {[%clk 00:24:42]} {[%emt
00:01:19]} Qxd3+ {[%clk 00:12:24]} {[%emt 00:00:17]} 25. Ka1 {[%clk 00:24:26]}
{[%emt 00:00:45]} Bf7 {[%clk 00:10:06]} {[%emt 00:02:48]} 26. fxe5 {[%clk
00:22:07]} {[%emt 00:02:50]} Bxa3 {[%clk 00:08:52]} {[%emt 00:01:43]} 27. Nc4
{[%clk 00:21:05]} {[%emt 00:01:32]} fxe5 {[%clk 00:05:26]} {[%emt 00:03:56]} 28.
Rf2 {[%clk 00:16:33]} {[%emt 00:05:03]} Qb3 {[%clk 00:04:35]} {[%emt 00:01:21]}
29. bxa3 {[%clk 00:14:40]} {[%emt 00:02:23]} Qa4 {[%clk 00:00:47]} {[%emt
00:04:18]} 30. Rxf7 {[%clk 00:12:30]} {[%emt 00:02:39]} Kxf7 {[%clk 00:00:41]}
{[%emt 00:00:36]} 31. Qd5+ {[%clk 00:11:55]} {[%emt 00:01:05]} Kg7 {[%clk
00:00:32]} {[%emt 00:00:40]} 32. Qxe5+ {[%clk 00:11:55]} {[%emt 00:00:30]} Kf7
{[%clk 00:00:54]} {[%emt 00:00:08]} 33. Rf1+ {[%clk 00:12:13]} {[%emt
00:00:11]} Kg8 {[%clk 00:01:17]} {[%emt 00:00:07]} 34. Qe6+ {[%clk 00:11:56]}
{[%emt 00:00:47]} Kg7 {[%clk 00:01:28]} {[%emt 00:00:19]} 35. Qe5+ {[%clk
00:12:10]} {[%emt 00:00:17]} Kg8 {[%clk 00:01:47]} {[%emt 00:00:10]} 36. Qxb8+
{[%clk 00:12:35]} 1-0

[ePGN "0.1;DGT LiveChess/2.2.6"]

[Event "Goteborg Open 2024"]
[Site "Goteborgs Schackcentrum, Vegatan 20, Gothenburg, Sweden"]
[Date "2024.08.04"]
[Round "8.4"]
[White "Eriksson, Kristian"]
[Black "Ottgard, Andreas"]
[Result "1/2-1/2"]
[TimeControl "15 minutes + 5 seconds per move from move one (Round 1 - 4) / 90 minutes + 30 seconds per move from move one (Round 5 - 8)"]
[WhiteFideId "1705172"]
[BlackFideId "1730592"]
[WhiteElo "2064"]
[BlackElo "1900"]

1. e4 {[%clk 01:30:54]} {[%emt 00:00:04]} d6 {[%clk 01:30:45]} {[%emt
00:00:15]} 2. d4 {[%clk 01:31:11]} {[%emt 00:00:13]} Nf6 {[%clk 01:31:10]}
{[%emt 00:00:05]} 3. Nc3 {[%clk 01:31:33]} {[%emt 00:00:08]} g6 {[%clk
01:31:30]} {[%emt 00:00:11]} 4. Nf3 {[%clk 01:31:04]} {[%emt 00:00:59]} Bg7
{[%clk 01:30:58]} {[%emt 00:01:02]} 5. Bc4 {[%clk 01:30:51]} {[%emt 00:00:42]}
O-O {[%clk 01:27:09]} {[%emt 00:04:20]} 6. O-O {[%clk 01:30:44]} {[%emt
00:00:37]} Bg4 {[%clk 01:15:57]} {[%emt 00:11:41]} 7. h3 {[%clk 01:25:28]}
{[%emt 00:05:46]} Bxf3 {[%clk 01:14:47]} {[%emt 00:01:41]} 8. Qxf3 {[%clk
01:25:50]} {[%emt 00:00:07]} Nc6 {[%clk 01:15:00]} {[%emt 00:00:18]} 9. Be3
{[%clk 01:20:54]} {[%emt 00:05:26]} e5 {[%clk 01:13:29]} {[%emt 00:02:01]} 10.
dxe5 {[%clk 01:20:00]} {[%emt 00:01:25]} Nxe5 {[%clk 01:12:56]} {[%emt
00:01:02]} 11. Qe2 {[%clk 01:20:21]} {[%emt 00:00:08]} Nxc4 {[%clk 01:12:45]}
{[%emt 00:00:43]} 12. Qxc4 {[%clk 01:20:45]} {[%emt 00:00:04]} Re8 {[%clk
01:09:32]} {[%emt 00:03:44]} 13. Rad1 {[%clk 01:12:10]} {[%emt 00:09:04]} a6
{[%clk 00:49:44]} {[%emt 00:20:19]} 14. a4 {[%clk 01:08:40]} {[%emt 00:03:59]}
Qd7 {[%clk 00:40:10]} {[%emt 00:10:05]} 15. f3 {[%clk 01:04:18]} {[%emt
00:04:51]} Qc6 {[%clk 00:32:53]} {[%emt 00:07:47]} 16. Qxc6 {[%clk 01:01:08]}
{[%emt 00:03:41]} bxc6 {[%clk 00:33:17]} {[%emt 00:00:07]} 17. Kf2 {[%clk
00:51:33]} {[%emt 00:10:04]} Rab8 {[%clk 00:28:54]} {[%emt 00:04:53]} 18. b3
{[%clk 00:50:59]} {[%emt 00:01:06]} h5 {[%clk 00:26:12]} {[%emt 00:03:11]} 19.
Bd4 {[%clk 00:45:24]} {[%emt 00:06:04]} Nd7 {[%clk 00:25:15]} {[%emt 00:01:28]}
20. Bxg7 {[%clk 00:40:32]} {[%emt 00:05:21]} Kxg7 {[%clk 00:25:24]} {[%emt
00:00:21]} 21. Rfe1 {[%clk 00:40:24]} {[%emt 00:00:37]} f6 {[%clk 00:20:17]}
{[%emt 00:05:38]} 22. g4 {[%clk 00:31:48]} 1/2-1/2

[ePGN "0.1;DGT LiveChess/2.2.6"]

[Event "Goteborg Open 2024"]
[Site "Goteborgs Schackcentrum, Vegatan 20, Gothenburg, Sweden"]
[Date "2024.08.04"]
[Round "8.5"]
[White "Harila, Per"]
[Black "Wesslen, Ulf"]
[Result "0-1"]
[TimeControl "15 minutes + 5 seconds per move from move one (Round 1 - 4) / 90 minutes + 30 seconds per move from move one (Round 5 - 8)"]
[WhiteFideId "1707248"]
[BlackFideId "1705199"]
[WhiteElo "1947"]
[BlackElo "1953"]

1. c4 {[%clk 01:30:57]} {[%emt 00:00:03]} e6 {[%clk 01:30:16]} {[%emt
00:00:44]} 2. Nc3 {[%clk 01:28:37]} {[%emt 00:02:51]} Nf6 {[%clk 01:28:54]}
{[%emt 00:01:52]} 3. d4 {[%clk 01:28:50]} {[%emt 00:00:17]} c5 {[%clk
01:27:30]} {[%emt 00:01:54]} 4. d5 {[%clk 01:29:14]} {[%emt 00:00:06]} exd5
{[%clk 01:27:46]} {[%emt 00:00:13]} 5. cxd5 {[%clk 01:29:42]} {[%emt 00:00:03]}
g6 {[%clk 01:26:24]} {[%emt 00:01:51]} 6. e4 {[%clk 01:28:59]} {[%emt
00:01:14]} d6 {[%clk 01:26:37]} {[%emt 00:00:16]} 7. Nge2 {[%clk 01:28:31]}
{[%emt 00:00:57]} Bg7 {[%clk 01:25:45]} {[%emt 00:01:22]} 8. Ng3 {[%clk
01:28:45]} {[%emt 00:00:18]} O-O {[%clk 01:25:20]} {[%emt 00:00:54]} 9. Be2
{[%clk 01:29:13]} {[%emt 00:00:03]} Na6 {[%clk 01:21:30]} {[%emt 00:04:20]} 10.
h4 {[%clk 01:29:28]} {[%emt 00:00:14]} h5 {[%clk 01:17:29]} {[%emt 00:04:32]}
11. Bg5 {[%clk 01:29:48]} {[%emt 00:00:09]} Qa5 {[%clk 01:12:47]} {[%emt
00:05:13]} 12. O-O {[%clk 01:28:20]} {[%emt 00:01:58]} Bd7 {[%clk 01:06:42]}
{[%emt 00:06:35]} 13. Qd2 {[%clk 01:20:57]} {[%emt 00:07:53]} Rfe8 {[%clk
01:03:33]} {[%emt 00:03:38]} 14. Qf4 {[%clk 01:14:38]} {[%emt 00:06:50]} Nh7
{[%clk 00:58:25]} {[%emt 00:05:37]} 15. Qxd6 {[%clk 01:12:56]} {[%emt
00:02:12]} Nxg5 {[%clk 00:58:29]} {[%emt 00:00:26]} 16. Qxd7 {[%clk 01:10:55]}
{[%emt 00:02:31]} Nh7 {[%clk 00:55:53]} {[%emt 00:03:05]} 17. Qxb7 {[%clk
01:07:15]} {[%emt 00:04:11]} Nc7 {[%clk 00:54:33]} {[%emt 00:01:51]} 18. d6
{[%clk 01:00:39]} {[%emt 00:07:05]} Ne6 {[%clk 00:53:52]} {[%emt 00:01:11]} 19.
d7 {[%clk 00:53:57]} {[%emt 00:07:13]} Reb8 {[%clk 00:51:51]} {[%emt 00:02:30]}
20. Qd5 {[%clk 00:51:59]} {[%emt 00:02:27]} Qd8 {[%clk 00:44:43]} {[%emt
00:07:39]} 21. Rab1 {[%clk 00:46:28]} {[%emt 00:06:01]} Qxh4 {[%clk 00:40:47]}
{[%emt 00:04:26]} 22. e5 {[%clk 00:41:15]} {[%emt 00:05:43]} Rd8 {[%clk
00:38:50]} {[%emt 00:02:27]} 23. Rfe1 {[%clk 00:36:22]} {[%emt 00:05:24]} Qe7
{[%clk 00:33:22]} {[%emt 00:05:57]} 24. Bf3 {[%clk 00:34:02]} {[%emt 00:02:50]}
Rab8 {[%clk 00:32:37]} {[%emt 00:01:15]} 25. Rbd1 {[%clk 00:18:27]} {[%emt
00:16:06]} Rxb2 {[%clk 00:26:48]} {[%emt 00:06:18]} 26. Na4 {[%clk 00:18:03]}
{[%emt 00:00:54]} Rb4 {[%clk 00:22:47]} {[%emt 00:04:31]} 27. Qc6 {[%clk
00:15:32]} {[%emt 00:03:02]} Rd4 {[%clk 00:20:27]} {[%emt 00:02:49]} 28. Rc1
{[%clk 00:12:11]} {[%emt 00:03:52]} Bf8 {[%clk 00:17:28]} {[%emt 00:03:28]} 29.
Ne4 {[%clk 00:10:04]} {[%emt 00:02:38]} R8xd7 {[%clk 00:14:53]} {[%emt
00:03:05]} 30. Naxc5 {[%clk 00:04:24]} {[%emt 00:06:09]} Rc7 {[%clk 00:14:57]}
{[%emt 00:00:25]} 31. Qb5 {[%clk 00:04:29]} {[%emt 00:00:26]} Nxc5 {[%clk
00:14:00]} {[%emt 00:01:26]} 32. Nxc5 {[%clk 00:01:35]} {[%emt 00:03:25]} Rxc5
{[%clk 00:14:07]} {[%emt 00:00:22]} 33. Qb3 {[%clk 00:01:30]} {[%emt 00:00:36]}
Rxe5 {[%clk 00:13:42]} {[%emt 00:00:55]} 34. Rxe5 {[%clk 00:01:45]} {[%emt
00:00:15]} Qxe5 {[%clk 00:13:55]} {[%emt 00:00:17]} 35. Qb7 {[%clk 00:01:50]}
{[%emt 00:00:25]} Ng5 {[%clk 00:13:23]} {[%emt 00:01:02]} 36. Qxa7 {[%clk
00:01:36]} {[%emt 00:00:44]} Nxf3+ {[%clk 00:13:25]} {[%emt 00:00:28]} 37. gxf3
{[%clk 00:02:04]} {[%emt 00:00:02]} Qg5+ {[%clk 00:13:33]} {[%emt 00:00:22]}
0-1

[ePGN "0.1;DGT LiveChess/2.2.6"]

[Event "Goteborg Open 2024"]
[Site "Goteborgs Schackcentrum, Vegatan 20, Gothenburg, Sweden"]
[Date "2024.08.04"]
[Round "8.6"]
[White "Utriainen, Tapani"]
[Black "Fransson, Lennart"]
[Result "0-1"]
[TimeControl "15 minutes + 5 seconds per move from move one (Round 1 - 4) / 90 minutes + 30 seconds per move from move one (Round 5 - 8)"]
[WhiteFideId "16300696"]
[BlackFideId "1706756"]
[WhiteElo "1914"]
[BlackElo "1926"]

1. d4 {[%clk 01:30:56]} {[%emt 00:00:04]} Nf6 {[%clk 01:29:09]} {[%emt
00:01:51]} 2. c4 {[%clk 01:31:24]} {[%emt 00:00:03]} c5 {[%clk 01:29:30]}
{[%emt 00:00:07]} 3. d5 {[%clk 01:31:49]} {[%emt 00:00:06]} d6 {[%clk
01:29:55]} {[%emt 00:00:05]} 4. Nc3 {[%clk 01:32:12]} {[%emt 00:00:07]} g6
{[%clk 01:30:19]} {[%emt 00:00:06]} 5. e4 {[%clk 01:32:36]} {[%emt 00:00:07]}
Bg7 {[%clk 01:30:44]} {[%emt 00:00:04]} 6. f4 {[%clk 01:31:28]} {[%emt
00:01:39]} O-O {[%clk 01:31:04]} {[%emt 00:00:08]} 7. Nf3 {[%clk 01:31:33]}
{[%emt 00:00:26]} Na6 {[%clk 01:31:21]} {[%emt 00:00:12]} 8. h3 {[%clk
01:31:13]} {[%emt 00:00:51]} Nh5 {[%clk 01:24:31]} {[%emt 00:07:19]} 9. Ne2
{[%clk 01:31:33]} {[%emt 00:00:12]} e5 {[%clk 01:23:29]} {[%emt 00:01:31]} 10.
g4 {[%clk 01:17:01]} {[%emt 00:15:03]} Nxf4 {[%clk 01:23:13]} {[%emt 00:00:45]}
11. Nxf4 {[%clk 01:16:39]} {[%emt 00:00:52]} exf4 {[%clk 01:23:40]} {[%emt
00:00:03]} 12. Bd3 {[%clk 01:16:09]} {[%emt 00:01:00]} f5 {[%clk 01:01:24]}
{[%emt 00:22:45]} 13. exf5 {[%clk 01:10:56]} {[%emt 00:05:44]} gxf5 {[%clk
00:59:43]} {[%emt 00:02:11]} 14. g5 {[%clk 01:11:11]} {[%emt 00:00:16]} Qe8+
{[%clk 00:58:21]} {[%emt 00:01:51]} 15. Kf2 {[%clk 01:09:43]} {[%emt 00:01:58]}
Be5 {[%clk 00:57:16]} {[%emt 00:01:34]} 16. a3 {[%clk 01:03:00]} {[%emt
00:07:14]} Qh5 {[%clk 00:55:59]} {[%emt 00:01:47]} 17. Rb1 {[%clk 00:56:44]}
{[%emt 00:06:46]} Nb8 {[%clk 00:47:40]} {[%emt 00:08:49]} 18. Bd2 {[%clk
00:49:44]} {[%emt 00:07:30]} b5 {[%clk 00:45:34]} {[%emt 00:02:35]} 19. b3
{[%clk 00:47:03]} {[%emt 00:03:12]} Nd7 {[%clk 00:38:42]} {[%emt 00:07:22]} 20.
Qc1 {[%clk 00:45:38]} {[%emt 00:01:55]} Bd4+ {[%clk 00:38:49]} {[%emt
00:00:22]} 21. Kg2 {[%clk 00:45:20]} {[%emt 00:00:49]} Ne5 {[%clk 00:38:57]}
{[%emt 00:00:23]} 22. Qf1 {[%clk 00:37:21]} {[%emt 00:08:27]} Nxf3 {[%clk
00:24:53]} {[%emt 00:14:34]} 23. Qxf3 {[%clk 00:37:44]} {[%emt 00:00:08]} Qxg5+
{[%clk 00:25:05]} {[%emt 00:00:18]} 24. Kh2 {[%clk 00:38:04]} {[%emt 00:00:09]}
Qg3+ {[%clk 00:20:26]} {[%emt 00:05:09]} 25. Qxg3+ {[%clk 00:38:33]} {[%emt
00:00:02]} fxg3+ {[%clk 00:20:47]} {[%emt 00:00:08]} 26. Kxg3 {[%clk 00:38:58]}
{[%emt 00:00:05]} Bd7 {[%clk 00:17:59]} {[%emt 00:03:18]} 27. cxb5 {[%clk
00:35:28]} {[%emt 00:04:01]} Rab8 {[%clk 00:16:11]} {[%emt 00:02:18]} 28. a4
{[%clk 00:35:15]} {[%emt 00:00:43]} Rf7 {[%clk 00:15:47]} {[%emt 00:00:53]} 29.
Bf4 {[%clk 00:32:16]} {[%emt 00:03:29]} Re8 {[%clk 00:13:47]} {[%emt 00:02:29]}
30. Kf3 {[%clk 00:25:11]} {[%emt 00:07:36]} Rfe7 {[%clk 00:14:05]} {[%emt
00:00:13]} 31. Rh2 {[%clk 00:19:03]} {[%emt 00:06:38]} Re3+ {[%clk 00:14:00]}
{[%emt 00:00:34]} 32. Bxe3 {[%clk 00:18:40]} {[%emt 00:00:53]} Rxe3+ {[%clk
00:14:28]} {[%emt 00:00:03]} 33. Kf4 {[%clk 00:16:10]} {[%emt 00:03:00]} Rxd3
{[%clk 00:14:49]} {[%emt 00:00:09]} 34. Rg2+ {[%clk 00:15:57]} {[%emt
00:00:44]} Kf7 {[%clk 00:15:10]} {[%emt 00:00:07]} 35. Kg5 {[%clk 00:10:17]}
{[%emt 00:06:10]} h6+ {[%clk 00:12:24]} {[%emt 00:03:16]} 36. Kxh6 {[%clk
00:10:22]} {[%emt 00:00:26]} Rxh3+ {[%clk 00:12:36]} {[%emt 00:00:18]} 37. Kg5
{[%clk 00:10:43]} {[%emt 00:00:09]} Be3# {[%clk 00:12:08]} {[%emt 00:00:09]}
0-1

[ePGN "0.1;DGT LiveChess/2.2.6"]